bitfinex-derivatives/quotes_BTCF0:USTF0_20240929
["timestamp","ask_amount","ask_price","bid_price","bid_amount"]
[1727642447054,0.158319,65973.0,65972.0,0.10997305]
[1727642455360,0.23745336,65973.0,65972.0,0.01]
[1727642460362,0.23735322,65973.0,65972.0,0.01]
[1727642462065,0.19489119,65973.0,65972.0,0.01]
[1727642463259,0.078319,65973.0,65972.0,0.18571995]
[1727642463667,0.078319,65973.0,65972.0,0.18571718]
[1727642463970,0.078319,65973.0,65972.0,0.10990528]
[1727642464569,0.0035,65982.0,65973.0,0.075768]
[1727642464879,0.0035,65982.0,65980.0,0.14064864]
[1727642465068,0.36307397,65984.0,65981.0,0.0324]
[1727642465467,0.36307397,65984.0,65982.0,0.06061977]
[1727642465666,0.36307397,65984.0,65981.0,0.09301977]
[1727642466479,0.36407397,65984.0,65981.0,0.09301977]
[1727642467576,0.08,65983.0,65981.0,0.09301977]
[1727642468575,0.08,65983.0,65981.0,0.0324]
[1727642469280,0.082,65983.0,65981.0,0.0324]
[1727642470374,0.12868398,65982.0,65981.0,0.0324]
[1727642471596,0.12968398,65982.0,65981.0,0.0324]
[1727642471768,0.13068398,65982.0,65981.0,0.0324]
[1727642477983,0.13073838,65982.0,65981.0,0.0324]
[1727642478383,0.002,65982.0,65981.0,0.0324]
[1727642478580,0.002,65982.0,65981.0,0.07784334]
[1727642480378,0.002,65982.0,65981.0,0.0324]
[1727642482477,0.002,65982.0,65981.0,0.07784334]
[1727642483190,0.002,65982.0,65981.0,0.0324]
[1727642483381,0.002,65982.0,65981.0,0.07784334]
[1727642485382,0.03898668,65982.0,65981.0,0.0324]
[1727642485592,0.002,65982.0,65981.0,0.0324]
[1727642485989,0.13082955,65982.0,65981.0,0.0324]
[1727642487589,0.13080501,65982.0,65981.0,0.0324]
[1727642492615,0.13087868,65982.0,65981.0,0.0324]
[1727642492907,0.29763937,65982.0,65981.0,0.0324]
[1727642493503,0.002,65982.0,65981.0,0.0324]
[1727642494913,0.002,65982.0,65980.0,0.06330943]
[1727642499603,0.002,65982.0,65981.0,0.04544334]
[1727642500206,0.002,65982.0,65978.0,0.06061977]
[1727642500407,0.12898359,65981.0,65977.0,0.438004]
[1727642500715,0.28040458,65980.0,65977.0,0.436564]
[1727642500916,0.12898359,65979.0,65977.0,0.436564]
[1727642501115,0.12898359,65978.0,65977.0,0.436564]
[1727642501312,0.08598906,65978.0,65977.0,0.436564]
[1727642501501,0.12898359,65978.0,65977.0,0.436564]
[1727642501703,0.04895823,65978.0,65977.0,0.436564]
[1727642502009,0.15142099,65980.0,65977.0,0.436564]
[1727642502213,0.28040527,65980.0,65977.0,0.436564]
[1727642502408,0.12898428,65979.0,65977.0,0.436564]
[1727642502715,0.12898428,65978.0,65977.0,0.436564]
[1727642502914,0.03703103,65978.0,65977.0,0.436564]
[1727642503105,0.15142099,65981.0,65977.0,0.436564]
[1727642503719,0.15142099,65981.0,65977.0,0.4538404]
[1727642504710,0.28040527,65980.0,65977.0,0.4538404]
[1727642504913,0.12898428,65979.0,65977.0,0.4538404]
[1727642505120,0.12898428,65978.0,65977.0,0.4538404]
[1727642508413,0.16676069,65980.0,65977.0,0.55337831]
[1727642508614,0.1126,65983.0,65978.0,0.09953791]
[1727642508814,0.1126,65983.0,65980.0,0.07581851]
[1727642510022,0.1126,65983.0,65969.0,0.47034153]
[1727642510023,0.07577,65972.0,65971.0,0.09098287]
[1727642510209,0.075782,65962.0,65961.0,0.0035]
[1727642510411,0.075782,65962.0,65950.0,0.0323]
[1727642510412,0.075792,65953.0,65951.0,0.0035]
[1727642510611,0.155792,65953.0,65950.0,0.0323]
[1727642511018,0.155792,65953.0,65950.0,0.04959388]
[1727642511218,0.155792,65953.0,65952.0,0.06283942]
[1727642511615,0.155792,65953.0,65952.0,0.04765417]
[1727642511919,0.155792,65953.0,65952.0,0.05965417]
[1727642512722,0.155792,65953.0,65952.0,0.02627369]
[1727642514729,0.516592,65953.0,65952.0,0.02627369]
[1727642519625,0.516592,65953.0,65952.0,6.9e-07]
[1727642520326,1.571472,65953.0,65952.0,6.9e-07]
[1727642521033,0.075804,65943.0,65942.0,0.0035]
[1727642521225,0.075807,65940.0,65939.0,0.0308]
[1727642521427,0.155807,65940.0,65939.0,0.0308]
[1727642523630,0.155807,65940.0,65939.0,0.0348]
[1727642524025,0.155807,65940.0,65939.0,0.0388]
[1727642524323,0.155807,65940.0,65939.0,0.008]
[1727642526429,0.158357,65940.0,65939.0,0.008]
[1727642528735,0.44335,65940.0,65930.0,0.0035]
[1727642529039,0.08,65931.0,65926.0,0.3608]
[1727642529239,0.08,65927.0,65926.0,0.3608]
[1727642529828,0.155822,65927.0,65926.0,0.3608]
[1727642530137,0.155822,65927.0,65926.0,0.3708]
[1727642530333,0.151822,65927.0,65926.0,0.3708]
[1727642530734,0.151822,65927.0,65926.0,0.3608]
[1727642531040,0.152822,65927.0,65926.0,0.3708]
[1727642531241,0.153822,65927.0,65926.0,0.3748]
[1727642532044,0.077822,65927.0,65926.0,0.014]
[1727642532533,0.157822,65927.0,65926.0,0.014]
[1727642533329,0.156822,65927.0,65926.0,0.004]
[1727642533536,0.155822,65927.0,65926.0,0.008]
[1727642533945,0.075822,65927.0,65926.0,0.008]
[1727642541140,0.105922,65927.0,65926.0,0.008]
[1727642541839,0.14166275,65927.0,65926.0,0.008]
[1727642542035,0.105922,65927.0,65926.0,0.008]
[1727642542473,0.14167376,65927.0,65926.0,0.008]
[1727642542838,0.105922,65927.0,65926.0,0.008]
[1727642543037,0.075822,65927.0,65926.0,0.008]
[1727642543242,0.155822,65927.0,65926.0,0.008]
[1727642544347,0.19162297,65927.0,65926.0,0.008]
[1727642545352,0.20914156,65927.0,65926.0,0.008]
[1727642545552,0.17334059,65927.0,65926.0,0.008]
[1727642548052,0.17934059,65927.0,65926.0,0.005]
[1727642549389,0.161822,65927.0,65926.0,0.005]
[1727642549551,0.167822,65927.0,65926.0,0.002]
[1727642553645,0.20378728,65927.0,65926.0,0.002]
[1727642555458,0.30982663,65927.0,65926.0,0.002]
[1727642556564,0.20378728,65927.0,65926.0,0.002]
[1727642557150,0.12383305,65927.0,65926.0,0.002]
[1727642557658,0.22964718,65927.0,65926.0,0.0334]
[1727642558063,0.16582801,65927.0,65926.0,0.0334]
[1727642558860,0.21365742,65927.0,65926.0,0.0334]
[1727642560769,0.087822,65927.0,65926.0,0.0334]
[1727642565560,0.087822,65927.0,65926.0,0.07889317]
[1727642566866,0.087822,65927.0,65926.0,0.0334]
[1727642568364,0.448622,65927.0,65926.0,0.0334]
[1727642568768,0.448622,65927.0,65926.0,0.002]
[1727642574274,0.451172,65927.0,65926.0,0.002]
[1727642575671,0.21596483,65927.0,65926.0,0.002]
[1727642575871,0.57676483,65927.0,65926.0,0.002]
[1727642576468,0.57676873,65927.0,65926.0,0.002]
[1727642576664,0.21596873,65927.0,65926.0,0.002]
[1727642576871,0.65676873,65927.0,65926.0,0.002]
[1727642579171,0.79310503,65927.0,65926.0,0.002]
[1727642580090,0.65676873,65927.0,65926.0,0.002]
[1727642580778,0.65666962,65927.0,65926.0,0.002]
[1727642581380,0.29586962,65927.0,65926.0,0.002]
[1727642581584,0.65666962,65927.0,65926.0,0.002]
[1727642582683,0.57666962,65927.0,65926.0,0.002]
[1727642583689,0.451172,65927.0,65926.0,0.002]
[1727642584579,0.445172,65927.0,65926.0,0.001]
[1727642584779,0.455172,65927.0,65926.0,0.002]
[1727642584981,0.455172,65927.0,65926.0,0.001]
[1727642585480,0.094372,65927.0,65926.0,0.001]
[1727642585684,0.449172,65927.0,65926.0,0.001]
[1727642585985,0.458172,65927.0,65926.0,0.001]
[1727642586386,0.097372,65927.0,65926.0,0.001]
[1727642586977,0.458172,65927.0,65926.0,0.001]
[1727642589780,0.097372,65927.0,65926.0,0.001]
[1727642589984,0.458172,65927.0,65926.0,0.001]
[1727642595292,0.488472,65927.0,65926.0,0.001]
[1727642597198,0.41265,65927.0,65921.0,0.04552165]
[1727642597388,0.08,65920.0,65909.0,0.06056573]
[1727642597589,0.3608,65910.0,65908.0,0.06056573]
[1727642597790,0.3608,65910.0,65909.0,0.0303]
[1727642598691,0.43887322,65910.0,65909.0,0.0303]
[1727642598994,0.43887322,65910.0,65909.0,0.0353]
[1727642598995,0.43987301,65910.0,65909.0,0.0353]
[1727642599195,0.44087301,65910.0,65909.0,0.0373]
[1727642599721,0.08007301,65910.0,65909.0,0.0373]
[1727642599900,0.14388979,65910.0,65909.0,0.0373]
[1727642600805,0.21973179,65910.0,65909.0,0.0373]
[1727642601400,0.1139694,65910.0,65909.0,0.0373]
[1727642603797,0.11412465,65910.0,65909.0,0.0373]
[1727642605598,0.1141215,65910.0,65909.0,0.0373]
[1727642605802,0.077842,65910.0,65909.0,0.1372441]
[1727642608302,0.077842,65910.0,65909.0,0.21296115]
[1727642608711,0.077842,65910.0,65909.0,0.21304446]
[1727642609997,0.077842,65910.0,65909.0,0.0373]
[1727642611605,0.077842,65910.0,65909.0,0.007]
[1727642612799,0.157842,65910.0,65909.0,0.007]
[1727642613703,0.23506474,65910.0,65909.0,0.007]
[1727642614207,0.15506474,65910.0,65909.0,0.007]
[1727642614402,0.23506474,65910.0,65909.0,0.007]
[1727642615204,0.29919461,65910.0,65909.0,0.007]
[1727642616602,1.24873595,65910.0,65909.0,0.007]
[1727642616902,0.075851,65902.0,65901.0,0.3608]
[1727642617124,0.075854,65900.0,65898.0,0.0634]
[1727642617309,0.08,65899.0,65898.0,0.0634]
[1727642617999,0.08,65899.0,65898.0,0.0807913]
[1727642618597,0.081,65899.0,65898.0,0.0847913]
[1727642618904,0.156854,65899.0,65898.0,0.0847913]
[1727642619095,0.19235771,65899.0,65898.0,0.0847913]
[1727642619301,0.156854,65899.0,65898.0,0.0847913]
[1727642619496,0.19235728,65899.0,65898.0,0.0847913]
[1727642619703,0.03750409,65899.0,65898.0,0.0847913]
[1727642620802,0.002,65899.0,65898.0,0.0847913]
[1727642622409,0.002,65899.0,65898.0,0.34119838]
[1727642622609,0.3608,65905.0,65898.0,0.26534338]
[1727642622919,0.3608,65905.0,65904.0,0.06056141]
[1727642623400,0.436647,65905.0,65903.0,0.08]
[1727642623599,0.437647,65905.0,65903.0,0.08]
[1727642623800,0.438647,65905.0,65903.0,0.08]
[1727642624506,0.07585,65903.0,65902.0,0.07570177]
[1727642624705,0.15585,65903.0,65901.0,0.07570177]
[1727642625097,0.15585,65903.0,65902.0,0.07570177]
[1727642625302,0.15585,65903.0,65902.0,0.10036249]
[1727642626912,0.082,65903.0,65899.0,0.43656902]
[1727642627226,0.082,65903.0,65899.0,0.3608]
[1727642627227,0.155853,65900.0,65899.0,0.3608]
[1727642627512,0.195853,65900.0,65899.0,0.06061563]
[1727642627809,0.075857,65897.0,65896.0,0.00030175]
[1727642628004,0.1114147,65897.0,65896.0,0.00030175]
[1727642628199,0.21712364,65897.0,65896.0,0.00030175]
[1727642628511,0.1114147,65897.0,65896.0,0.00030175]
[1727642630017,0.1124147,65897.0,65896.0,0.00030175]
[1727642630222,0.1134147,65897.0,65896.0,0.00030175]
[1727642630806,0.1134147,65897.0,65892.0,0.00227611]
[1727642630807,0.075861,65893.0,65892.0,0.00227611]
[1727642631111,0.1114187,65893.0,65892.0,0.00227611]
[1727642632415,0.1124187,65893.0,65892.0,0.00227611]
[1727642633801,0.002,65893.0,65892.0,0.43893811]
[1727642634600,0.075857,65897.0,65892.0,1.41835611]
[1727642634801,0.03560138,65896.0,65895.0,0.075858]
[1727642635102,0.075854,65900.0,65897.0,0.075856]
[1727642635315,0.03577913,65899.0,65898.0,0.12]
[1727642635507,0.03577913,65899.0,65898.0,0.4808]
[1727642635713,0.075854,65900.0,65898.0,0.67139823]
[1727642635907,0.075854,65900.0,65899.0,0.10031648]
[1727642637414,0.075854,65900.0,65899.0,0.19059823]
[1727642638210,0.198854,65900.0,65899.0,0.10031648]
[1727642638421,0.200854,65900.0,65899.0,0.10031648]
[1727642639114,0.200854,65900.0,65899.0,0.17608957]
[1727642639314,0.075854,65899.0,65898.0,0.07578302]
[1727642639513,0.195854,65899.0,65898.0,0.07578302]
[1727642640522,0.195854,65899.0,65898.0,0.17647514]
[1727642640822,0.195854,65899.0,65898.0,0.17647506]
[1727642641005,0.197854,65899.0,65898.0,0.17647506]
[1727642641420,0.198854,65899.0,65898.0,0.17647506]
[1727642642817,0.24671697,65899.0,65892.0,0.36307611]
[1727642643156,0.13597756,65894.0,65892.0,0.36307611]
[1727642643429,0.07675779,65893.0,65892.0,0.36307611]
[1727642643721,0.21273535,65895.0,65892.0,0.36307611]
[1727642643922,0.12377851,65894.0,65892.0,0.36307611]
[1727642644218,0.19963851,65894.0,65892.0,0.36307611]
[1727642644416,0.07675779,65893.0,65892.0,0.36307611]
[1727642644615,0.195861,65893.0,65892.0,0.3608]
[1727642644812,0.195861,65893.0,65881.0,0.0035]
[1727642644813,0.075871,65884.0,65881.0,0.0035]
[1727642645014,0.075871,65884.0,65877.0,0.075879]
[1727642645015,0.075876,65881.0,65877.0,0.075879]
[1727642645215,0.10575338,65878.0,65877.0,0.436679]
[1727642645421,0.14127218,65878.0,65877.0,0.436679]
[1727642646121,0.0355188,65878.0,65877.0,0.436679]
[1727642646456,0.0365188,65878.0,65877.0,0.436679]
[1727642647216,0.0375188,65878.0,65877.0,0.436679]
[1727642647425,0.0035,65886.0,65877.0,0.436679]
[1727642647426,0.0035,65886.0,65878.0,0.4554]
[1727642647612,0.0035,65886.0,65885.0,0.43667]
[1727642647808,0.075869,65886.0,65885.0,0.43667]
[1727642648225,0.11531451,65886.0,65885.0,0.43667]
[1727642648414,0.076869,65886.0,65885.0,0.43667]
[1727642648816,0.077869,65886.0,65885.0,0.43667]
[1727642650321,0.002,65886.0,65885.0,0.43667]
[1727642650908,0.002,65886.0,65885.0,0.53858789]
[1727642651109,0.002,65886.0,65885.0,0.46271789]
[1727642651315,0.002,65886.0,65885.0,0.5384413]
[1727642651316,0.077869,65886.0,65885.0,0.5384413]
[1727642652226,0.07587,65885.0,65884.0,0.09309841]
[1727642652916,0.07587,65885.0,65884.0,0.075871]
[1727642653127,0.075871,65884.0,65883.0,0.07572341]
[1727642653313,0.12,65885.0,65882.0,0.07572341]
[1727642653522,0.075873,65883.0,65882.0,0.07572341]
[1727642653717,0.075873,65883.0,65882.0,0.17789768]
[1727642654033,0.075873,65883.0,65882.0,0.17783973]
[1727642654330,0.074873,65883.0,65882.0,0.17783973]
[1727642654921,0.075873,65883.0,65882.0,0.17883973]
[1727642655226,0.076873,65883.0,65882.0,0.17883973]
[1727642655428,0.076873,65883.0,65882.0,0.17884245]
[1727642656028,0.076873,65883.0,65882.0,0.17883871]
[1727642657120,0.076873,65883.0,65882.0,0.07672613]
[1727642657322,0.076873,65883.0,65882.0,0.001]
[1727642660128,0.437673,65883.0,65882.0,0.001]
[1727642661535,0.437673,65883.0,65876.0,0.00030175]
[1727642661536,0.3618,65883.0,65876.0,0.00030175]
[1727642661730,0.075877,65880.0,65876.0,0.00030175]
[1727642662937,0.075878,65879.0,65876.0,0.00030175]
[1727642663637,0.151756,65879.0,65876.0,0.00030175]
[1727642663833,0.075878,65879.0,65876.0,0.00030175]
[1727642664229,0.075879,65878.0,65876.0,0.00030175]
[1727642665625,0.076879,65878.0,65876.0,0.00030175]
[1727642665824,0.076879,65878.0,65876.0,0.00986779]
[1727642666540,0.077879,65878.0,65876.0,0.00986779]
[1727642668132,0.07588,65877.0,65876.0,0.00986779]
[1727642669734,0.07688,65877.0,65876.0,0.00986779]
[1727642670337,0.07788,65877.0,65876.0,0.00986779]
[1727642673543,0.07788,65877.0,65876.0,0.07045081]
[1727642673941,0.002,65877.0,65876.0,0.08574879]
[1727642674443,0.002,65877.0,65876.0,0.16147492]
[1727642677237,0.002,65877.0,65876.0,0.26377527]
[1727642678343,0.075879,65878.0,65876.0,0.26382337]
[1727642678539,0.075879,65878.0,65876.0,0.16147492]
[1727642678943,0.075879,65878.0,65877.0,0.07588]
[1727642679136,0.075878,65879.0,65877.0,0.25392322]
[1727642679338,0.075878,65879.0,65878.0,0.07572613]
[1727642679539,0.075878,65879.0,65878.0,0.17802353]
[1727642680045,0.075878,65879.0,65878.0,0.25390153]
[1727642680244,0.075878,65879.0,65878.0,0.15160413]
[1727642680437,0.075878,65879.0,65878.0,0.25385791]
[1727642681041,0.075878,65879.0,65878.0,0.25485791]
[1727642681346,0.075878,65879.0,65878.0,0.076878]
[1727642683745,0.075857,65897.0,65885.0,0.07587]
[1727642683966,0.0035,65890.0,65889.0,0.075866]
[1727642684248,0.075859,65895.0,65889.0,0.29762734]
[1727642684444,0.0358,65899.0,65894.0,0.3608]
[1727642684755,0.0323,65899.0,65894.0,0.4808]
[1727642684957,0.0323,65899.0,65894.0,0.54141374]
[1727642685349,0.0323,65899.0,65894.0,0.556659]
[1727642685745,0.0323,65899.0,65894.0,0.61727274]
[1727642686244,0.0323,65899.0,65894.0,0.556659]
[1727642687042,0.0323,65899.0,65894.0,0.559659]
[1727642687439,0.0323,65899.0,65894.0,0.561659]
[1727642688049,0.0323,65899.0,65896.0,0.075857]
[1727642688242,0.0323,65899.0,65894.0,0.4858]
[1727642688243,0.03555375,65897.0,65894.0,0.48664]
[1727642688444,0.03555375,65896.0,65895.0,0.075859]
[1727642690068,0.03555375,65896.0,65895.0,0.077859]
[1727642690359,0.03555375,65896.0,65895.0,0.078859]
[1727642692453,0.03555375,65896.0,65895.0,0.003]
[1727642692655,0.11141175,65896.0,65895.0,0.003]
[1727642693050,0.03555375,65896.0,65895.0,0.003]
[1727642693946,0.03533516,65896.0,65895.0,0.003]
[1727642695470,0.12,65897.0,65895.0,0.003]
[1727642696856,0.12,65897.0,65895.0,0.001]
[1727642697063,0.12,65897.0,65895.0,0.003]
[1727642697262,0.12,65897.0,65895.0,0.002]
[1727642697563,0.12,65897.0,65895.0,0.003]
[1727642698063,0.12,65897.0,65895.0,0.078859]
[1727642698257,0.12,65897.0,65895.0,0.003]
[1727642698462,0.195857,65897.0,65895.0,0.001]
[1727642698685,0.195857,65897.0,65895.0,0.003]
[1727642699053,0.195857,65897.0,65895.0,0.002]
[1727642699255,0.195857,65897.0,65895.0,0.003]
[1727642699467,0.195857,65897.0,65895.0,0.001]
[1727642699764,0.195857,65897.0,65895.0,0.003]
[1727642699960,0.075857,65897.0,65895.0,0.003]
[1727642702454,0.075858,65896.0,65895.0,0.003]
[1727642702653,0.075858,65896.0,65895.0,0.002]
[1727642703371,0.075858,65896.0,65895.0,0.001]
[1727642703671,0.11124588,65896.0,65895.0,0.001]
[1727642704667,0.11124588,65896.0,65894.0,0.3608]
[1727642704859,0.03538788,65895.0,65894.0,0.43666]
[1727642705065,0.03538788,65895.0,65894.0,0.55666]
[1727642705261,0.1813985,65900.0,65894.0,0.55666]
[1727642705462,0.03556578,65899.0,65894.0,0.91746]
[1727642705866,0.03556578,65899.0,65895.0,0.002]
[1727642706172,0.03556578,65898.0,65897.0,0.075855]
[1727642706359,0.03556578,65900.0,65897.0,0.195855]
[1727642706565,0.03556578,65899.0,65897.0,0.195855]
[1727642706762,0.03556578,65898.0,65897.0,0.195855]
[1727642707267,0.03568906,65898.0,65897.0,0.195855]
[1727642707973,0.03568906,65898.0,65897.0,0.12]
[1727642708159,0.11154406,65898.0,65897.0,0.12]
[1727642710373,0.11254406,65898.0,65897.0,0.4808]
[1727642710568,0.076855,65898.0,65897.0,0.54141374]
[1727642711276,0.076855,65898.0,65897.0,0.4808]
[1727642713276,0.076855,65898.0,65897.0,0.58134812]
[1727642713666,0.076855,65898.0,65897.0,0.657168]
[1727642716370,0.076855,65898.0,65897.0,0.65717959]
[1727642718571,0.076855,65898.0,65897.0,0.4808]
[1727642718877,0.11832429,65898.0,65897.0,0.4808]
[1727642719079,0.15404144,65898.0,65897.0,0.4808]
[1727642719582,0.15404144,65898.0,65897.0,1.53604]
[1727642719583,0.07735179,65898.0,65897.0,1.53604]
[1727642719884,0.075851,65902.0,65901.0,0.075852]
[1727642720179,0.15457035,65910.0,65901.0,0.195852]
[1727642720180,0.12096886,65904.0,65901.0,0.195852]
[1727642720371,0.12096886,65904.0,65903.0,0.4808]
[1727642720571,0.12096886,65905.0,65903.0,0.4808]
[1727642721075,0.12096886,65905.0,65903.0,0.556649]
[1727642721281,0.19681586,65906.0,65905.0,0.075847]
[1727642721484,0.075847,65906.0,65905.0,0.075847]
[1727642722871,0.075847,65906.0,65905.0,0.107147]
[1727642723072,0.092847,65906.0,65905.0,0.107147]
[1727642723290,0.092847,65906.0,65905.0,0.12458611]
[1727642723783,0.092847,65906.0,65905.0,0.04873911]
[1727642724982,0.092847,65906.0,65905.0,0.01743911]
[1727642725187,0.017,65906.0,65903.0,0.48156]
[1727642725481,0.075848,65904.0,65903.0,0.4808]
[1727642726295,0.075848,65904.0,65903.0,0.3608]
[1727642726475,0.075848,65904.0,65903.0,0.42138423]
[1727642726887,0.082848,65904.0,65903.0,0.42138423]
[1727642727075,0.082848,65904.0,65903.0,0.3608]
[1727642727986,0.088848,65904.0,65903.0,0.3608]
[1727642731293,0.088848,65904.0,65900.0,0.0313]
[1727642731294,0.088848,65904.0,65899.0,0.0035]
[1727642731590,0.195853,65900.0,65899.0,0.0035]
[1727642731779,0.07586,65894.0,65893.0,0.3643]
[1727642731978,0.07586,65894.0,65893.0,0.3608]
[1727642732579,0.07586,65894.0,65893.0,0.3780877]
[1727642732978,0.07586,65894.0,65893.0,0.3810877]
[1727642733182,0.07586,65894.0,65893.0,0.3638]
[1727642733888,0.07586,65894.0,65893.0,0.3678]
[1727642735591,0.07586,65894.0,65893.0,0.007]
[1727642735789,0.07586,65894.0,65893.0,0.3678]
[1727642737589,0.07586,65894.0,65893.0,0.007]
[1727642741292,0.07586,65894.0,65893.0,0.05241431]
[1727642741502,0.07586,65894.0,65893.0,0.007]
[1727642747597,0.15586,65894.0,65893.0,0.007]
[1727642749306,0.51666,65894.0,65893.0,0.007]
[1727642749893,0.15586,65894.0,65893.0,0.007]
[1727642750106,0.51666,65894.0,65893.0,0.007]
[1727642756104,0.15586,65894.0,65893.0,0.007]
[1727642756297,0.51666,65894.0,65893.0,0.007]
[1727642756707,0.6332857,65894.0,65893.0,0.007]
[1727642757115,0.78435605,65894.0,65893.0,0.007]
[1727642763818,0.51666,65894.0,65893.0,0.007]
[1727642770023,0.15586,65894.0,65893.0,0.007]
[1727642770225,0.51666,65894.0,65893.0,0.007]
[1727642770821,0.51666,65894.0,65893.0,0.05241431]
[1727642771020,0.51666,65894.0,65893.0,0.007]
[1727642774319,0.075867,65888.0,65887.0,0.06412351]
[1727642774522,0.3608,65888.0,65881.0,0.10747939]
[1727642774711,0.155874,65882.0,65881.0,0.0317]
[1727642775618,0.151874,65882.0,65881.0,0.0317]
[1727642776328,0.151874,65882.0,65881.0,0.0347]
[1727642777426,0.152874,65882.0,65881.0,0.0347]
[1727642778017,0.153874,65882.0,65881.0,0.0317]
[1727642778827,0.27329147,65882.0,65881.0,0.0317]
[1727642779923,0.32939661,65882.0,65881.0,0.1117]
[1727642780123,0.19329147,65882.0,65881.0,0.1117]
[1727642780325,0.14671115,65882.0,65881.0,0.1117]
[1727642781222,0.07522854,65882.0,65881.0,0.1117]
[1727642781526,0.15110254,65882.0,65881.0,0.1117]
[1727642785921,0.077874,65882.0,65881.0,0.21387842]
[1727642787434,0.077874,65882.0,65881.0,0.13387842]
[1727642793834,0.11184225,65882.0,65881.0,0.0317]
[1727642795622,0.1118344,65882.0,65881.0,0.0317]
[1727642795824,0.11183832,65882.0,65881.0,0.0317]
[1727642798040,0.15127332,65882.0,65881.0,0.1117]
[1727642798227,0.15127332,65882.0,65881.0,0.187575]
[1727642800433,0.15127332,65882.0,65881.0,0.1117]
[1727642800633,0.15127332,65882.0,65881.0,0.08]
[1727642800835,0.077874,65882.0,65881.0,0.18212159]
[1727642802137,0.077874,65882.0,65881.0,0.10212159]
[1727642802343,0.157874,65882.0,65881.0,0.10212159]
[1727642809055,0.075876,65880.0,65879.0,0.0635]
[1727642809350,0.18183745,65880.0,65879.0,0.4243]
[1727642809546,0.10987343,65880.0,65879.0,0.4243]
[1727642809951,0.14935356,65880.0,65879.0,0.4243]
[1727642810151,0.10987343,65880.0,65879.0,0.4243]
[1727642810448,0.11087812,65880.0,65879.0,0.4243]
[1727642810648,0.15035642,65880.0,65879.0,0.4243]
[1727642811047,0.15036499,65880.0,65879.0,0.4243]
[1727642811251,0.15036501,65880.0,65879.0,0.0635]
[1727642811447,0.15036501,65880.0,65879.0,0.4243]
[1727642811850,0.15036501,65880.0,65879.0,0.4253]
[1727642811851,0.15136501,65880.0,65879.0,0.4253]
[1727642812046,0.15136501,65880.0,65879.0,0.0645]
[1727642812353,0.15136501,65880.0,65879.0,0.4253]
[1727642815048,0.11736289,65880.0,65879.0,0.4253]
[1727642815249,0.15136927,65880.0,65879.0,0.4253]
[1727642815950,0.077876,65880.0,65879.0,0.52749206]
[1727642816556,0.077876,65880.0,65879.0,0.49549206]
[1727642819957,0.077876,65880.0,65879.0,0.49549509]
[1727642820557,0.077876,65880.0,65879.0,0.46399509]
[1727642820859,0.077876,65880.0,65879.0,0.55509448]
[1727642823264,0.077876,65880.0,65879.0,0.55513797]
[1727642823956,0.27226945,65880.0,65879.0,0.3618]
[1727642825056,0.15122461,65880.0,65879.0,0.3618]
[1727642825255,0.27232852,65880.0,65879.0,0.3618]
[1727642831066,0.077876,65880.0,65879.0,0.46406296]
[1727642832960,0.077876,65880.0,65879.0,0.46406706]
[1727642836169,0.077876,65880.0,65879.0,0.10326706]
[1727642837862,0.077876,65880.0,65879.0,0.10329197]
[1727642839071,0.077876,65880.0,65879.0,0.06172098]
[1727642846175,0.19754759,65880.0,65879.0,0.001]
[1727642847681,0.19755016,65880.0,65879.0,0.001]
[1727642852486,0.19717908,65880.0,65879.0,0.001]
[1727642853293,0.27717908,65880.0,65879.0,0.001]
[1727642854087,0.157876,65880.0,65879.0,0.1793753]
[1727642854396,0.157876,65880.0,65876.0,0.02755957]
[1727642854397,0.157876,65880.0,65878.0,0.07590443]
[1727642854697,0.08,65879.0,65878.0,0.07590443]
[1727642854879,0.08,65879.0,65876.0,0.02755957]
[1727642854880,0.07588,65877.0,65876.0,0.02755957]
[1727642855079,0.07588,65877.0,65876.0,0.1300892]
[1727642855499,0.07488,65877.0,65876.0,0.1300892]
[1727642855990,0.07488,65877.0,65876.0,0.02755957]
[1727642856690,0.07688,65877.0,65876.0,0.02855957]
[1727642856985,0.07688,65877.0,65876.0,0.13058067]
[1727642859585,0.07688,65877.0,65876.0,0.02855957]
[1727642861297,0.07588,65877.0,65876.0,0.02855957]
[1727642861497,0.07688,65877.0,65876.0,0.02855957]
[1727642862199,0.07688,65877.0,65876.0,0.02755957]
[1727642865201,0.15074636,65877.0,65876.0,0.02755957]
[1727642868615,0.07688,65877.0,65876.0,0.02755957]
[1727642876524,0.15047873,65877.0,65876.0,0.02755957]
[1727642878223,0.15049116,65877.0,65876.0,0.02755957]
[1727642878617,0.2715197,65877.0,65876.0,0.02755957]
[1727642881620,0.27143248,65877.0,65876.0,0.02755957]
[1727642882729,0.15040394,65877.0,65876.0,0.02755957]
[1727642883524,0.07688,65877.0,65876.0,0.02755957]
[1727642890944,0.07688,65877.0,65868.0,0.00426]
[1727642890945,0.075883,65874.0,65868.0,0.00426]
[1727642891133,0.075893,65865.0,65864.0,0.0035]
[1727642891442,0.075899,65860.0,65859.0,0.0321]
[1727642891642,0.075899,65860.0,65859.0,0.13474402]
[1727642891830,0.155899,65860.0,65859.0,0.13474402]
[1727642892235,0.155899,65860.0,65859.0,0.0321]
[1727642893332,0.156899,65860.0,65859.0,0.0321]
[1727642894533,0.157899,65860.0,65859.0,0.0321]
[1727642897258,0.077899,65860.0,65859.0,0.3929]
[1727642899535,0.077899,65860.0,65859.0,0.4688]
[1727642899741,0.002,65860.0,65859.0,0.5488]
[1727642899946,0.075895,65864.0,65862.0,0.075896]
[1727642900144,0.075895,65864.0,65863.0,0.08]
[1727642901648,0.076895,65864.0,65863.0,0.08]
[1727642902659,0.002,65864.0,65863.0,0.08]
[1727642902846,0.002,65864.0,65863.0,0.155896]
[1727642903544,0.002,65864.0,65863.0,1.211376]